Cogmind - Beta 10.2 *** ADVENTURER MODE // 2021.08.27 @ 12:22:59 Player: Jezoensis Result: Self-destructed Performance ------------- Evolutions (3) 1500 Regions Visited (9) 1800 Robots Destroyed (104) 520 Value Destroyed (2803) 2803 Prototype IDs (39) 780 Alien Tech Used (0) 0 Bonus (600) 600 TOTAL SCORE: 8003 Bonus ------- Aligned with FarCom 300 Met Data Miner 300 Cogmind --------- Core Integrity 461/700 Matter 258/300 Energy 300/300 System Corruption 7% Temperature Cool (0) Movement Core (1600) Ox31 Location -7/Data Miner Parts ------- > --- POWER (1) -------- Enhanced Nuclear Core > --- PROPULSION (4) --- Light Treads Armored Treads Armored Treads Medium Treads > --- UTILITY (5) ------ Large Storage Unit Large Storage Unit High-capacity Storage Unit Advanced Terrain Scan Processor Improved Medium Armor Plating > --- WEAPON (3) ------- Gauss Rifle Precision Assault Rifle Heavy Rocket Launcher > --- INVENTORY (24) --- Micro Nuclear Core Micro Nuclear Core Light Treads Light Treads Light Treads Armored Treads Armored Treads Improved Cooling System High-capacity Storage Unit Improved Terrain Scanner Long-range Terrain Scanner Improved Salvage Targeting Computer Improved Medium Armor Plating Improved Medium Armor Plating Improved Medium Armor Plating Medium Insulated Plating Medium Insulated Plating Gauss Rifle Gauss Rifle Gauss Rifle Precision Assault Rifle Makeshift Shrapnel Gun Great Maul Peak State ------------ > --- POWER ------------ Enhanced Nuclear Core > --- PROPULSION ------- Light Treads Armored Treads Advanced Treads Medium Treads > --- UTILITY ---------- Large Storage Unit Large Storage Unit High-capacity Storage Unit Advanced Terrain Scan Processor Precision Energy Filter > --- WEAPON ----------- Improved Spread Laser Precision Assault Rifle Precision Assault Rifle > --- INVENTORY -------- Micro Nuclear Core Micro Nuclear Core Armored Treads Medium Treads Improved Cooling System High-capacity Storage Unit Improved Signal Interpreter Improved Terrain Scanner Long-range Terrain Scanner Improved Salvage Targeting Computer Improved Medium Armor Plating Improved Medium Armor Plating Improved Medium Armor Plating Improved Medium Armor Plating Gauss Rifle Gauss Rifle Gauss Rifle Gauss Rifle Precision Assault Rifle Precision Assault Rifle Shock Bomb Launcher Heavy Rocket Launcher Spear [Rating: 53] Favorites ----------- Power Enhanced Nuclear Core Engine Ion Engine Power Core Enhanced Nuclear Core Propulsion Light Treads Treads Light Treads Utility Large Storage Unit Device Long-range Terrain Scanner Storage Large Storage Unit Processor Advanced Terrain Scan Processor Hackware Hacking Suite Protection Layered Light Armor Plating Weapon Precision Assault Rifle Energy Gun Shock Rifle Energy Cannon Heavy Ion Cannon Ballistic Gun Precision Assault Rifle Launcher Rocket Launcher Piercing Weapon Spear Build | -11 -10 -10 -10 -9 -8 -7 -7 -7 -7 ------- Run | Scr Mat Min Exi Min Mat Fac Low Low Dat Slots Evolved 6 | . . . . . 4 2 . . . Power . | . . . . . . . . . . Propulsion 2 | . . . . . 2 . . . . Utility 3 | . . . . . 2 1 . . . Weapon 1 | . . . . . . 1 . . . Parts Attached 107 | 6 6 . 1 3 19 40 14 15 3 Power 5 | 1 1 . . . . 3 . . . Engine 2 | 1 1 . . . . . . . . Core 3 | . . . . . . 3 . . . Reactor . | . . . . . . . . . . Propulsion 14 | 2 . . . . 4 3 2 3 . Treads 14 | 2 . . . . 4 3 2 3 . Leg . | . . . . . . . . . . Wheel . | . . . . . . . . . . Hover . | . . . . . . . . . . Flight . | . . . . . . . . . . Utility 42 | 1 4 . 1 . 5 17 8 5 1 Device 18 | . 2 . . . 2 7 5 2 . Storage 6 | 1 1 . 1 . 1 2 . . . Processor 7 | . 1 . . . 2 3 . 1 . Hackware 2 | . . . . . . 2 . . . Protection 9 | . . . . . . 3 3 2 1 Artifact . | . . . . . . . . . . Weapon 46 | 2 1 . . 3 10 17 4 7 2 Energy Gun 14 | . 1 . . . 3 7 2 1 . Energy Cannon 2 | . . . . . 2 . . . . Ballistic Gun 17 | 2 . . . 1 3 6 . 4 1 Ballistic Cannon . | . . . . . . . . . . Launcher 12 | . . . . 2 2 3 2 2 1 Special Weapon . | . . . . . . . . . . Impact Weapon . | . . . . . . . . . . Slashing Weapon . | . . . . . . . . . . Piercing Weapon 1 | . . . . . . 1 . . . Special Melee Weapon . | . . . . . . . . . . Unidentified Prototypes 6 | . . . . . 1 4 1 . . Parts Lost 9 | . . . . . . 1 2 6 . Power . | . . . . . . . . . . Propulsion 4 | . . . . . . . 1 3 . Utility 1 | . . . . . . . 1 . . Weapon 4 | . . . . . . 1 . 3 . Highest Loss Streak 5 | . . . . . . 1 2 5 . Average Slot Usage (%) 99 | . 100 100 100 100 98 99 99 96 100 Engine 4 | . 14 14 14 14 9 . . . . Core 4 | . . . . . . 6 7 7 7 Treads 29 | . 28 28 28 28 35 30 29 27 30 Device 8 | . 12 14 14 14 9 5 4 6 . Storage 19 | . 14 14 14 14 17 21 23 23 23 Processor 6 | . 1 . . . 9 8 7 7 7 Energy Gun 7 | . 4 14 14 7 5 7 6 1 . Ballistic Gun 14 | . 23 14 14 15 6 13 15 19 15 Naked Turns . | . . . . . . . . . . Heaviest Build 94 | 11 18 18 26 28 53 88 91 89 94 Greatest Support 93 | 40 40 40 40 40 82 93 93 88 88 Greatest Overweight (x) 1 | . . . . . . . 1 1 1 Average Overweight (x) . | . . . . . . . . . . Largest Inventory Capacity 24 | 6 8 8 10 10 16 24 24 24 24 Average Capacity 18 | 5 7 8 9 10 15 22 24 24 24 Most Carried 24 | 4 8 8 9 9 16 24 24 24 24 Average Carried 16 | 2 5 7 8 9 12 20 23 22 23 Final Capacity 24 | 6 8 8 10 10 16 24 24 24 24 Final Carried 24 | 4 8 8 9 9 16 24 24 24 23 Class Distribution -------------------- 49% | Hauler-Skirmisher 33% | Mutant 10% | Skirmisher 4% | Hauler-Tank Dominant Class ---------------- Mutant | -10/Materials Mutant | -10/Mines Mutant | -10/Exiles Skirmisher | -9/Mines Mutant | -8/Materials Hauler-Skirmisher | -7/Factory Hauler-Skirmisher | -7/Lower Caves Hauler-Skirmisher | -7/Lower Caves Hauler-Tank | -7/Data Miner Resources | -11 -10 -10 -10 -9 -8 -7 -7 -7 -7 ----------- Run | Scr Mat Min Exi Min Mat Fac Low Low Dat Matter Collected 2563 | 264 120 64 . 94 117 911 532 461 . Remotely . | . . . . . . . . . . Salvage Created 3804 | 129 217 59 . 168 358 1444 744 685 . Parts 214 | 9 24 6 . 15 12 92 25 31 . Haulers Intercepted 7 | . 2 . . . 1 3 1 . . Recyclers Shooed 3 | . . . . . 1 2 . . . Parts Field Recycled . | . . . . . . . . . . Retrieved Matter . | . . . . . . . . . . Parts Self-Destructed 30 | . . . . . . . 18 12 . Prevented 8 | . . . . . . . 6 2 . Kills | -11 -10 -10 -10 -9 -8 -7 -7 -7 -7 ------- Run | Scr Mat Min Exi Min Mat Fac Low Low Dat Combat Hostiles Destroyed 70 | . 2 3 . 8 4 22 17 14 . Guns 43 | . 2 3 . 1 . 13 13 11 . Cannons 1 | . . . . . 1 . . . . AOE 26 | . . . . 7 3 9 4 3 . Classes Destroyed 14 | 2 3 . . . 2 5 . 2 . Worker 6 | . . . . . . 6 . . . Builder 1 | . . . . . . 1 . . . Tunneler 5 | 3 . 1 . 1 . . . . . Hauler 7 | . 2 . . . 1 3 1 . . Recycler 6 | 1 1 . . 2 . 2 . . . Operator 1 | . . . . . . 1 . . . Watcher 8 | . 2 . . . 3 3 . . . Swarmer 35 | . 2 3 . 8 . 10 8 4 . Grunt 20 | . . . . . 3 5 8 4 . Duelist 3 | . . . . . . 2 1 . . Sentry 3 | . . . . . 1 2 . . . Programmer 3 | . . . . . . 3 . . . Savage 4 | . . . . . . . . 4 . Butcher 1 | . . . . . . . . 1 . Mutant 1 | . . . . . . . . 1 . Best Kill Streak 6 | 2 2 3 . 5 4 5 6 4 . Combat Bots Only 5 | . 2 3 . 4 3 4 5 4 . Max Kills in Single Turn 4 | 1 1 2 . 4 1 3 3 2 . Gunslinging 1 | . . 1 . . . . . . . Exploded 3 | . . . . 3 1 2 2 2 . Melee . | . . . . . . . . . . Uniques/NPCs Destroyed . | . . . . . . . . . . Combat | -11 -10 -10 -10 -9 -8 -7 -7 -7 -7 -------- Run | Scr Mat Min Exi Min Mat Fac Low Low Dat Damage Taken 2583 | . 22 53 . 58 112 935 864 539 . Core 279 | . 5 5 . 17 13 47 147 45 . Absorbed by Shields . | . . . . . . . . . . Core Remaining (%) 95 | 100 . . . 89 97 . . . . Volleys Fired 171 | 8 15 4 . 4 21 56 32 31 . Largest 3 | 2 2 2 . 2 2 3 3 3 . Hottest 131 | 40 70 70 . 53 130 131 131 131 . Shots Fired 421 | 16 30 8 . 5 42 148 92 80 . Gun 375 | 16 30 8 . 1 16 141 87 76 . Cannon 20 | . . . . . 20 . . . . Launcher 26 | . . . . 4 6 7 5 4 . Special . | . . . . . . . . . . Kinetic 281 | 16 25 4 . 1 8 94 63 70 . Thermal 92 | . 5 4 . . 20 33 24 6 . Explosive 11 | . . . . 4 3 3 . 1 . Electromagnetic 37 | . . . . . 11 18 5 3 . Robot Hit Streak 37 | 6 8 8 . 2 14 37 32 36 . Robot Miss Streak 5 | 1 2 1 . 2 2 5 2 3 . Penetration Max 1 | . . . . . . 1 . . . Secondary Targets 4 | . . 1 . . . 1 1 1 . Max Gunslinging Chain 1 | . . 1 . . . 1 1 1 . Shots Hit Robots 324 | 11 22 5 . 2 30 109 74 71 . Core Hits 193 | 5 9 4 . 13 10 65 52 35 . Critical Hits 1 | . . . . . . 1 . . . Critical Kills . | . . . . . . . . . . Critical Parts Destroyed 1 | . . . . . . 1 . . . Melee Attacks 1 | . . . . . . 1 . . . Impact . | . . . . . . . . . . Slashing . | . . . . . . . . . . Piercing 1 | . . . . . . 1 . . . Sneak Attacks . | . . . . . . . . . . Combat Hostiles . | . . . . . . . . . . Follow-up Attacks . | . . . . . . . . . . Damage Inflicted 7930 | 140 273 48 . 480 1192 2835 1390 1538 34 Guns 4665 | 140 273 48 . 10 201 1939 837 1217 . Cannons 489 | . . . . . 489 . . . . Explosions 2721 | . . . . 470 502 875 553 321 . Melee . | . . . . . . . . . . Ramming 55 | . . . . . . 21 . . 34 Kinetic 3204 | 140 223 12 . 10 53 1196 498 1072 . Thermal 2163 | . 50 36 . . 554 877 448 198 . Explosive 999 | . . . . 470 241 288 . . . Electromagnetic 1509 | . . . . . 344 453 444 268 . Impact . | . . . . . . . . . . Slashing . | . . . . . . . . . . Piercing . | . . . . . . . . . . Highest Corruption 7 | . 1 1 1 1 . 4 4 7 7 Average Corruption 3 | . 1 1 1 1 . 2 4 6 7 Corruption Purged . | . . . . . . . . . . Effects 61 | . . 1 1 . . 20 12 25 2 Message Errors 7 | . . . 1 . . 3 1 1 1 Matter Fused 14 | . . . . . . 10 1 3 . Heat Flow Errors 10 | . . . . . . 2 3 4 1 Energy Discharges 14 | . . 1 . . . 3 1 9 . Data Loss (minor) 4 | . . . . . . 1 1 2 . Data Loss (major) 1 | . . . . . . . . 1 . Targeting Errors 9 | . . . . . . 1 4 4 . Weapon Failures 2 | . . . . . . . 1 1 . Overload Shots . | . . . . . . . . . . Overflow Damage 165 | . . . . . 75 33 18 15 24 Projectiles 26 | . . . . . 26 . . . . Explosions 115 | . . . . . 49 33 18 15 . Melee 24 | . . . . . . . . . 24 Knockbacks 1 | . . . . . . . . . 1 Impact 1 | . . . . . . . . . 1 Kinetic . | . . . . . . . . . . Secondary . | . . . . . . . . . . Self-Inflicted Damage 174 | . . . . 38 . . 96 40 . Shots 11 | . . . . 1 . . 6 4 . Rammed 3 | . . . . . . 2 . . 1 Targets Rammed 4 | . . . . . . 3 . . 1 Kicked . | . . . . . . . . . . Crushed 1 | . . . . . . 1 . . . Highest Temperature 603 | . 18 27 . . . 229 603 315 272 Average Temperature 109 | . 7 12 . . . 61 163 111 141 Received Heat Transfer 572 | . . . . . 54 147 189 182 . Effects 11 | . . . . . . . 10 1 . Shutdowns 3 | . . . . . . . 3 . . Energy Bleed 1 | . . . . . . . . 1 . Interference 2 | . . . . . . . 2 . . Damage (minor) 1 | . . . . . . . 1 . . Damage (major) 3 | . . . . . . . 3 . . Damage (core) 1 | . . . . . . . 1 . . Siege Activations . | . . . . . . . . . . Robots Corrupted . | . . . . . . . . . . Combat Hostiles . | . . . . . . . . . . Parts Fried 6 | . . . . . 2 . 3 1 . Impact Corruptions 1 | . . . . . . . . . 1 Robots Melted . | . . . . . . . . . . Combat Hostiles . | . . . . . . . . . . Parts Melted 3 | . 1 . . . 1 . 1 . . Heat Transferred 2620 | . 148 111 . . 766 1040 390 165 . Parts Sabotaged . | . . . . . . . . . . Parts Stolen . | . . . . . . . . . . Parts Stripped . | . . . . . . . . . . Power Chain Reactions 8 | . . . . . 1 5 1 1 . Missiles Intercepted . | . . . . . . . . . . Alert | -11 -10 -10 -10 -9 -8 -7 -7 -7 -7 ------- Run | Scr Mat Min Exi Min Mat Fac Low Low Dat Peak Influence 253 | 20 146 76 . 234 177 253 . . . Initial 76 | . 11 1 . . 76 68 . . . Average 85 | 10 71 63 . 65 95 93 . . . Maximum Alert Level 1 | . . . . 1 . 1 . . . Low Security (%) 97 | 100 100 100 . 88 100 96 . . . Level 1 2 | . . . . 11 . 3 . . . Level 2 . | . . . . . . . . . . Level 3 . | . . . . . . . . . . Level 4 . | . . . . . . . . . . Level 5 . | . . . . . . . . . . High Security . | . . . . . . . . . . Max Security . | . . . . . . . . . . Squads Dispatched 5 | . . . . . . 5 . . . Investigation 1 | . . . . . . 1 . . . Extermination 3 | . . . . . . 3 . . . Reinforcement 1 | . . . . . . 1 . . . Assault . | . . . . . . . . . . Garrison . | . . . . . . . . . . Intercept . | . . . . . . . . . . Construction Impeded . | . . . . . . . . . . Haulers Reinforced . | . . . . . . . . . . Stealth | -11 -10 -10 -10 -9 -8 -7 -7 -7 -7 --------- Run | Scr Mat Min Exi Min Mat Fac Low Low Dat Distress Signals 1 | . . . . . 1 . . . . Communications Jammed . | . . . . . . . . . . Distress Signals . | . . . . . . . . . . Times Spotted 96 | . 7 3 . 9 9 31 19 18 . Peak Tracking Total 5 | . 3 3 . 4 5 4 5 4 . Tactical Retreats 10 | . 1 . . 1 . 2 3 3 . Traps | -11 -10 -10 -10 -9 -8 -7 -7 -7 -7 ------- Run | Scr Mat Min Exi Min Mat Fac Low Low Dat Traps Triggered 1 | . . . . . . 1 . . . Indirectly . | . . . . . . . . . . Trap Hack Attempts . | . . . . . . . . . . Triggered . | . . . . . . . . . . Disarmed . | . . . . . . . . . . Reprogrammed . | . . . . . . . . . . Reused . | . . . . . . . . . . Traps Extracted . | . . . . . . . . . . Installed . | . . . . . . . . . . Triggered 2 | . . . . . . . 1 1 . Machines | -11 -10 -10 -10 -9 -8 -7 -7 -7 -7 ---------- Run | Scr Mat Min Exi Min Mat Fac Low Low Dat Machines Disabled 5 | . . . . 1 1 2 . . 1 Max in Single Turn 1 | . . . . 1 1 1 . . 1 Garrison Access 1 | . . . . . . 1 . . . Machines Sabotaged . | . . . . . . . . . . Garrisons Compromised . | . . . . . . . . . . Overloaded Fab Kills . | . . . . . . . . . . Fab Network Shutdowns . | . . . . . . . . . . Hacking | -11 -10 -10 -10 -9 -8 -7 -7 -7 -7 --------- Run | Scr Mat Min Exi Min Mat Fac Low Low Dat Machines Accessed 29 | . 6 . 1 . 5 15 1 . 1 Terminals 21 | . 6 . . . 5 10 . . . Fabricators 3 | . . . . . . 3 . . . Repair Stations . | . . . . . . . . . . Recycling Units . | . . . . . . . . . . Scanalyzers . | . . . . . . . . . . Garrison Access 2 | . . . . . . 2 . . . Total Hacks 68 | . 14 . 1 . 10 33 1 . 9 Successful 38 | . 7 . 1 . 7 13 1 . 9 Failed 30 | . 7 . . . 3 20 . . . Catastrophic 3 | . . . . . . 3 . . . Database Lockouts . | . . . . . . . . . . Manual 27 | . 7 . 1 . 10 9 . . . Terminals 48 | . 14 . . . 10 24 . . . Fabricators 5 | . . . . . . 5 . . . Repair Stations . | . . . . . . . . . . Recycling Units . | . . . . . . . . . . Scanalyzers . | . . . . . . . . . . Garrison Access 4 | . . . . . . 4 . . . Terminal Hacks 23 | . 4 . 1 . 4 4 1 . 9 Part Schematic 8 | . 1 . . . 1 . . . 6 Prototype ID Bank 3 | . . . . . . . . . 3 Open Door 1 | . . . . . . . 1 . . Branch Access Points 1 | . . . . . . 1 . . . Terminal Index 3 | . 1 . . . 1 1 . . . Locate Traps 3 | . 1 . . . . 2 . . . Zone Layout 3 | . 1 . . . 2 . . . . EX-Prototype ID Bank 1 | . . . 1 . . . . . . Fabricator Hacks 4 | . . . . . . 4 . . . Load Schematic 2 | . . . . . . 2 . . . Build 2 | . . . . . . 2 . . . Repair Station Hacks . | . . . . . . . . . . Recycling Unit Hacks . | . . . . . . . . . . Scanalyzer . | . . . . . . . . . . Garrison Access Hacks 1 | . . . . . . 1 . . . Seal Access 1 | . . . . . . 1 . . . Unauthorized Hacks 10 | . 3 . . . 3 4 . . . Terminals 10 | . 3 . . . 3 4 . . . Assimilate 1 | . . . . . . 1 . . . Botnet 7 | . 3 . . . 2 2 . . . Operators 2 | . . . . . 1 1 . . . Fabricators . | . . . . . . . . . . Repair Stations . | . . . . . . . . . . Recycling Units . | . . . . . . . . . . Scanalyzers . | . . . . . . . . . . Garrison Access . | . . . . . . . . . . Data Cores Recovered . | . . . . . . . . . . Used . | . . . . . . . . . . Hacking Detections 23 | . 6 . . . 5 12 . . . Full Trace Events 2 | . 1 . . . . 1 . . . Feedback Events 1 | . 1 . . . . . . . . Corruption 1 | . 1 . . . . . . . . Feedback Blocked . | . . . . . . . . . . Robot Schematics Acquired . | . . . . . . . . . . Robots Built . | . . . . . . . . . . Matter . | . . . . . . . . . . Time . | . . . . . . . . . . Total Robot Build Rating . | . . . . . . . . . . Part Schematics Acquired 8 | . 1 . . . 1 . . . 6 Parts Built 2 | . . . . . . 2 . . . Matter 204 | . . . . . . 204 . . . Time 102 | . . . . . . 102 . . . Total Part Build Rating 2 | . . . . . . 2 . . . Parts Repaired . | . . . . . . . . . . Time . | . . . . . . . . . . Parts Recycled . | . . . . . . . . . . Recycled Matter . | . . . . . . . . . . Retrieved Matter . | . . . . . . . . . . Retrieved Components . | . . . . . . . . . . Parts Scanalyzed . | . . . . . . . . . . Part Schematics Acquired . | . . . . . . . . . . Parts Damaged . | . . . . . . . . . . Bothacking | -11 -10 -10 -10 -9 -8 -7 -7 -7 -7 ------------ Run | Scr Mat Min Exi Min Mat Fac Low Low Dat Used RIF Installer . | . . . . . . . . . . Robots Hacked . | . . . . . . . . . . Non-combat . | . . . . . . . . . . Combat . | . . . . . . . . . . Robot Hacks Applied . | . . . . . . . . . . Relay Couplers Released . | . . . . . . . . . . Robots Rewired . | . . . . . . . . . . Allies Hacked . | . . . . . . . . . . Hacks Repelled . | . . . . . . . . . . Allies | -11 -10 -10 -10 -9 -8 -7 -7 -7 -7 -------- Run | Scr Mat Min Exi Min Mat Fac Low Low Dat Total Allies 1 | . . . . . . 1 . . . Largest Group 1 | . . . . . . 1 1 . . Highest-Rated Group 26 | . . . . . . 26 26 . . Highest-Rated Ally 26 | . . . . . . 26 26 . . Total Orders . | . . . . . . . . . . Ally Attacks . | . . . . . . . . . . Total Damage . | . . . . . . . . . . Kills . | . . . . . . . . . . Allies Corrupted . | . . . . . . . . . . Allies Melted . | . . . . . . . . . . Intel | -11 -10 -10 -10 -9 -8 -7 -7 -7 -7 ------- Run | Scr Mat Min Exi Min Mat Fac Low Low Dat Robot Analysis Total . | . . . . . . . . . . Derelict Logs Recovered 2 | . . 1 . . . . . 1 . Drone Launches . | . . . . . . . . . . Drone Recoveries . | . . . . . . . . . . Exploration | -11 -10 -10 -10 -9 -8 -7 -7 -7 -7 ------------- Run | Scr Mat Min Exi Min Mat Fac Low Low Dat Turns Passed 5875 | 110 436 278 477 269 679 2291 496 712 127 Spaces Moved 3190 | 55 232 165 297 160 351 1289 232 344 65 Core 14 | 14 . . . . . . . . . Treads 3176 | 41 232 165 297 160 351 1289 232 344 65 Legs . | . . . . . . . . . . Wheels . | . . . . . . . . . . Hover . | . . . . . . . . . . Flight . | . . . . . . . . . . Fastest Speed 50 | 50 160 160 160 160 156 156 156 165 165 Average Speed 159 | 132 160 160 160 160 158 156 157 171 183 Slowest Speed 186 | 160 160 160 160 160 160 156 178 186 185 Overloaded Moves . | . . . . . . . . . . Propulsion Burnouts . | . . . . . . . . . . Robots Hopped . | . . . . . . . . . . Cave-ins Triggered . | . . . . . . . . . . Exploration Rate (%) 42 | 4 39 27 68 47 38 39 38 50 77 Regions Visited 9 Branch Regions 6 Pre-discovered Areas 2 | . . 1 . 1 . . . . . Known Exits Taken 4 | . 1 . . . 1 1 . 1 . Unknown Exits Taken 5 | 1 . 1 1 1 . . 1 . . Scrap Searched 7 | . . 1 . 2 . . 2 2 . Spaces Dug 21 | . . . . . . 1 . 20 . Terrain Destroyed 112 | . . . . 42 5 33 5 27 . Melee 1 | . . . . . . 1 . . . Projectile 3 | . . . . . 2 1 . . . AOE 108 | . . . . 42 3 31 5 27 . Terrain Rammed . | . . . . . . . . . . Walls Destroyed . | . . . . . . . . . . Machines Disabled . | . . . . . . . . . . Actions | -11 -10 -10 -10 -9 -8 -7 -7 -7 -7 --------- Run | Scr Mat Min Exi Min Mat Fac Low Low Dat Total 3619 | 75 267 172 299 167 436 1447 288 397 71 Wait 38 | . 2 2 . 1 11 14 7 . 1 Move 3181 | 54 231 164 296 159 350 1288 231 343 65 Hop . | . . . . . . . . . . Pick Up 69 | 7 8 1 1 . 20 24 2 6 . Fast Attach 13 | 3 . . . . 2 5 1 2 . Attach 34 | 3 2 . . . 8 12 3 5 1 Detach 12 | . 1 . . . 4 5 1 . 1 Swap 60 | . 4 . 1 3 9 23 10 8 2 Drop 36 | . 4 1 1 . 11 16 1 2 . Fire 171 | 8 15 4 . 4 21 56 32 31 . Melee 1 | . . . . . . 1 . . . Ram . | . . . . . . . . . . Kick . | . . . . . . . . . . Crush 4 | . . . . . . 3 . . 1 Escape Stasis . | . . . . . . . . . . Rewire . | . . . . . . . . . . Trap . | . . . . . . . . . . Miscellaneous . | . . . . . . . . . . Route ------- -11/Scrapyard -10/Materials (discovered 2 exits: *Mat / *Min) -10/Mines -10/Exiles -9/Mines -8/Materials -7/Factory (discovered 3 exits: *Fac / *Low x2) -7/Lower Caves -7/Lower Caves -7/Data Miner (discovered 1 exit: *Pro) History --------- Turn | Location | Event 13 | -11/Scrapyard | Discovered new exit (range 14) 111 | -11/Scrapyard | Entered Materials 304 | -10/Materials | Build established: Mutant 356 | -10/Materials | Discovered new exit (range 6) 442 | -10/Materials | Discovered new exit (range 6) 462 | -10/Materials | Identified exit to Materials 504 | -10/Materials | Identified exit to Mines 547 | -10/Materials | Entered Mines 573 | -10/Mines | Learned location of Mines (-9) 748 | -10/Mines | Received a Rocket Launcher from a helpful Derelict 817 | -10/Mines | Deemed a non-threat by the Exiles lab entrance 819 | -10/Mines | Discovered new exit (range 5) 825 | -10/Mines | Entered Exiles 865 | -10/Exiles | Met 8R-AWN 891 | -10/Exiles | Met EX-HEX 963 | -10/Exiles | Met EX-DEC 1080 | -10/Exiles | Met EX-BIN 1102 | -10/Exiles | Aligned with FarCom system 1104 | -10/Exiles | Given EX-Vault access code 1141 | -10/Exiles | Opened EX-Vault 1153 | -10/Exiles | Found 0b10 Alert Chip 1186 | -10/Exiles | Warned to stay clear of 0b10 Research branches 1289 | -10/Exiles | Discovered new exit (range 10) 1302 | -10/Exiles | Left Exiles lab with 0b10 Alert Chip 1302 | -10/Exiles | Entered Mines 1303 | -9/Mines | Learned location of Storage (-9) 1565 | -9/Mines | Discovered new exit (range 5) 1571 | -9/Mines | Entered Materials 1571 | -8/Materials | Evolved 4 slots: Propulsion x2, Utility x2 2200 | -8/Materials | Discovered new exit (range 9) 2213 | -8/Materials | Identified exit to Factory 2250 | -8/Materials | Entered Factory 2250 | -7/Factory | Evolved 2 slots: Utility x1, Weapon x1 2508 | -7/Factory | Build established: Skirmisher 3190 | -7/Factory | Build established: Hauler-Skirmisher 3301 | -7/Factory | Fabricated Hcp. Storage Unit? 3823 | -7/Factory | Discovered new exit (range 23) 3954 | -7/Factory | Fabricated Hcp. Storage Unit? 4033 | -7/Factory | Identified exit to Factory 4408 | -7/Factory | Identified exit to Lower Caves 4541 | -7/Factory | Entered Lower Caves 4541 | -7/Lower Caves | Accompanied by 1 ally 5012 | -7/Lower Caves | Discovered new exit (range 16) 5037 | -7/Lower Caves | Entered another Lower Caves area 5037 | -7/Lower Caves | Accompanied by 1 ally 5078 | -7/Lower Caves | Lost 5 parts (3n2w) 5308 | -7/Lower Caves | Attacked by a faux Warlord 5709 | -7/Lower Caves | Discovered new exit (range 19) 5736 | -7/Lower Caves | Learned Factory garrison access intel 5748 | -7/Lower Caves | Identified exit to Data Miner 5749 | -7/Lower Caves | Entered Data Miner 5749 | -7/Data Miner | Discovered new exit (range 6) 5756 | -7/Data Miner | Identified exit to Proximity Caves 5788 | -7/Data Miner | Met Data Miner 5851 | -7/Data Miner | Received God Mode back door access code from Data Miner 5862 | -7/Data Miner | Data Conduit disabled 5876 | -7/Data Miner | Self-destructed Last Messages --------------- Downloading prototype IDs... Imp. Heavy Machine Gun Cld. Pulse Rifle >>Prototype ID Bank Downloading prototype IDs... Exp. Signal Interpreter Cld. VTOL Module >>Prototype ID Bank Downloading prototype IDs... Exp. Terrain Scanner Prc. Assault Rifle Data Miner: I've just received further instructions. God Mode is nearly complete and we think you might be able to put it to better use than Warlord, so if you see an opportunity, hack it and enter \\GFWG to gain control via the back door I've installed. Now off with you. 05862_ Slammed into Data Miner. 05862_ Destroyed Prototype Hackware. 05862_ Data Miner system corrupted by crushing effect. 05862_ Data Miner disappears through a trap door. Map ----- +----------------------------------------------------+ | | | | | | | | | | | | | | | | | | | | | | | | | | | | | ?????????????????????????????????? | | ?????????????????????????????????? | | ?????????????????????????????????? | | ?????????????????????????????????? | | ?????????????????????????????????? | | ????#################????????????? | | ???##"""""""""""""""######???????? | | ???#""""""""" """"""""######### | | ???"""""""""" | | ??#""""""" | | ??#""""" " | | ??#""""""@ | | ???""""""" | | ???""""""" """""""""" | | ???"""""""" """"######## | | ????""""""" """""###??????? | | ?????"""""""" "#####????????? | | ??????######"## "#????????????? | | ???????????#"### "#????????????? | | ???????????#"### "#????????????? | | ???????????#"## "#????????????? | | ???????????#?## "#????????????? | | ?????????????# "#????????????? | | ?????????????### "#????????????? | | ???????????????# "##???????????? | | ??????????????## ""#???????????? | | ?????????????## ""#???????????? | | ??????????##"#"X ""#???????????? | | ??????????""""" "####????????? | | ??????????""""" X"""""????????? | | ??????????##"#"X "##"#????????? | | ???????????#?## X""""#????????? | | ??????????????## "##"#????????? | | ???????????????#######???????????? | | ?????????????????????????????????? | | ?????????????????????????????????? | +----------------------------------------------------+ Best States ------------- Heat Dissipation 58 Energy Generation 17 Energy Capacity 300 Matter Stores 300 Matter Capacity 300 Sight Range 16 Terrain Scan Range 24 Terrain Scan Density 210 Armor Coverage 225 Resistance: KI 20 Resistance: TH 20 Resistance: EX 20 Resistance: EM 20 Resistance: I 20 Resistance: S 20 Resistance: P 20 Evasion (%) 50 Recoil Reduction 4 Offensive Hacking 20 Item Schematics ----------------- Hcp. Storage Unit | -10/Materials | Hacked Imp. Utility Shielding | -8/Materials | Hacked Combat Drone Bay | -7/Data Miner | Free Lgt. Regenerative Plating | -7/Data Miner | Free Exp. Flexi-carbon Leg | -7/Data Miner | Free Exp. Terrain Scan Processor | -7/Data Miner | Free Plasma Sword | -7/Data Miner | Free Kinetic Spear | -7/Data Miner | Free Robot Schematics ------------------ None Fabricated ------------ Hcp. Storage Unit | x1 | -7/Factory Hcp. Storage Unit | x1 | -7/Factory Alien Tech Used ----------------- None Achievements -------------- None Challenges ------------ None Game ------ Seed SwordEnergySuite Manual? 0 Play Time 00:56:25 Cumulative 185.2 hours Start 2021.08.27 @ 11:27:27 End 2021.08.27 @ 12:22:59 Sessions 1 Manual Loads 0 Difficulty Adventurer Special Mode None Game No. 80 Rogue 5 Adventurer 73 Explorer 2 Win Type - Total 8 Types 8/0/0/0/0/0/0/0/0 Lore% 31 Gallery% 66 Achievement% 44 Wizard Run 0 Options --------- ASCII 0 Keyboard 1 Movement Numpad Keybinds 0 Fullscreen 1 Font 36/TerminusFine Map View 76x50 Tactical HUD 1 Map Filters NONE Filters NONE Steam 1 RUN: 0a7433db-7688-45aa-b008-984068b588ea